Cogmind - Beta 9.1 --- EXPLORER MODE // 2019.11.10 @ 18:13:20 Player: Tenebrous Result: Destroyed by Y-45 Defender with Heavy Assault Rifle Performance ------------- Evolutions (2) 1000 Regions Visited (3) 600 Robots Destroyed (74) 370 Value Destroyed (1919) 1919 Prototype IDs (0) 0 Alien Tech Used (0) 0 Bonus (0) 0 TOTAL SCORE: 3889 Bonus ------- None Cogmind --------- Core Integrity 0/550 Matter 300/300 Energy 46/100 System Corruption 2% Temperature Cool (372) Location -8/Materials Parts ------- Power (3) Propulsion (3) Utility (3) High-capacity Storage Unit Weapon (3) Inventory (12) Ion Engine Ion Engine Medium Storage Unit Advanced Sensor Array Targeting Computer Peak State ------------ Power Improved Ion Engine Improved Ion Engine Improved Ion Engine Propulsion Wheel Wheel Armored Wheel Utility High-capacity Storage Unit Advanced Sensor Array Terrain Scanner Weapon Lightning Gun Lightning Gun Heavy Assault Rifle Inventory Ion Engine Ion Engine Medium Storage Unit Advanced Sensor Array Targeting Computer Lightning Gun Lightning Gun Heavy Particle Cannon [Rating: 26] Favorites ----------- Power Improved Ion Engine Engine Improved Ion Engine Propulsion Compact Wheel Leg Aluminum Leg Wheel Compact Wheel Utility Terrain Scanner Device Terrain Scanner Storage High-capacity Storage Unit Processor Targeting Computer Weapon Assault Cannon Energy Gun Lightning Gun Energy Cannon Heavy Particle Cannon Ballistic Gun Light Assault Rifle Ballistic Cannon Assault Cannon Build | -11 -10 -9 -8 ------- Run | Scr Mat Mat Mat Slots Evolved 5 | . 1 2 2 Power 2 | . 1 . 1 Propulsion 1 | . . . 1 Utility 1 | . . 1 . Weapon 1 | . . 1 . Parts Attached 46 | 7 5 18 16 Power 10 | 1 1 6 2 Engine 10 | 1 1 6 2 Core . | . . . . Reactor . | . . . . Propulsion 13 | 2 4 2 5 Treads . | . . . . Leg 4 | 2 2 . . Wheel 9 | . 2 2 5 Hover . | . . . . Flight . | . . . . Utility 7 | 2 . 4 1 Device 4 | . . 3 1 Storage 2 | 1 . 1 . Processor 1 | 1 . . . Hackware . | . . . . Protection . | . . . . Artifact . | . . . . Weapon 16 | 2 . 6 8 Energy Gun 5 | . . . 5 Energy Cannon 1 | . . . 1 Ballistic Gun 7 | 2 . 3 2 Ballistic Cannon 3 | . . 3 . Launcher . | . . . . Special Weapon . | . . . . Impact Weapon . | . . . . Slashing Weapon . | . . . . Piercing Weapon . | . . . . Special Melee Weapon . | . . . . Unidentified Prototypes . | . . . . Parts Lost 23 | . . 2 21 Power 4 | . . . 4 Propulsion 6 | . . 1 5 Utility 2 | . . . 2 Weapon 11 | . . 1 10 Highest Loss Streak 13 | . . 1 13 Average Slot Usage (%) 93 | . 100 95 88 Engine 21 | . 25 18 23 Leg 2 | . 17 . . Wheel 16 | . 7 18 18 Device 12 | . . 13 15 Storage 9 | . 12 10 8 Processor 4 | . 12 6 . Energy Gun 2 | . . . 6 Ballistic Gun 9 | . 25 3 9 Ballistic Cannon 13 | . . 26 5 Naked Turns . | . . . . Heaviest Build 66 | 15 20 63 66 Greatest Support 38 | 20 32 32 38 Greatest Overweight (x) 17 | . . 3 17 Average Overweight (x) 1 | . . 1 1 Largest Inventory Capacity 12 | 8 8 12 12 Average Capacity 11 | 5 8 11 12 Most Carried 12 | 4 8 12 10 Average Carried 8 | 1 5 10 7 Final Capacity 12 | 8 8 12 12 Final Carried 10 | 1 8 10 5 Class Distribution -------------------- 38% | Skirmisher 30% | Mutant 26% | Gunner 4% | Scavenger-Mutant Dominant Class ---------------- Mutant | -10/Materials Gunner | -9/Materials Skirmisher | -8/Materials Resources | -11 -10 -9 -8 ----------- Run | Scr Mat Mat Mat Matter Collected 1595 | 228 154 764 449 Remotely . | . . . . Salvage Created 2267 | . 177 767 1323 Parts 157 | . 19 63 75 Haulers Intercepted . | . . . . Recyclers Shooed 1 | . . 1 . Parts Field Recycled . | . . . . Retrieved Matter . | . . . . Parts Self-Destructed . | . . . . Prevented . | . . . . Kills | -11 -10 -9 -8 ------- Run | Scr Mat Mat Mat Combat Hostiles Destroyed 58 | . 8 25 25 Melee 1 | . . 1 . Guns 29 | . 8 1 20 Cannons 28 | . . 23 5 Classes Destroyed 10 | . 2 5 3 Worker 4 | . . 1 3 Builder 4 | . . 3 1 Recycler 3 | . . 1 2 Watcher 5 | . . 3 2 Swarmer 24 | . 6 10 8 Grunt 16 | . 2 7 7 Brawler 1 | . . . 1 Duelist 2 | . . . 2 Sentry 14 | . . 8 6 Hunter 1 | . . . 1 Best Kill Streak 6 | . 4 6 6 Combat Bots Only 5 | . 4 5 4 Max Kills in Single Turn 2 | . 1 2 1 Gunslinging . | . . . . Exploded . | . . . . Melee 1 | . . 1 . Uniques/NPCs Destroyed . | . . . . Combat | -11 -10 -9 -8 -------- Run | Scr Mat Mat Mat Damage Taken 2808 | . 240 723 1845 Core 696 | . 45 97 554 Absorbed by Shields . | . . . . Core Remaining (%) 85 | 100 82 75 . Volleys Fired 184 | . 31 55 98 Largest 3 | . 2 3 3 Hottest 185 | . 40 132 185 Shots Fired 398 | . 62 152 184 Gun 233 | . 62 11 160 Cannon 165 | . . 141 24 Launcher . | . . . . Special . | . . . . Kinetic 328 | . 62 152 114 Thermal 4 | . . . 4 Explosive . | . . . . Electromagnetic 66 | . . . 66 Robot Hit Streak 24 | . 9 15 24 Robot Miss Streak 3 | . 2 3 2 Penetration Max . | . . . . Secondary Targets 5 | . 2 . 3 Max Gunslinging Chain 1 | . 1 . 1 Shots Hit Robots 283 | . 46 92 145 Core Hits 118 | . 14 41 63 Critical Hits 2 | . 1 1 . Critical Kills . | . . . . Critical Parts Destroyed 2 | . 1 1 . Melee Attacks . | . . . . Impact . | . . . . Slashing . | . . . . Piercing . | . . . . Sneak Attacks . | . . . . Combat Hostiles . | . . . . Follow-up Attacks . | . . . . Damage Inflicted 5080 | . 371 2099 2610 Guns 2473 | . 371 66 2036 Cannons 2300 | . . 1939 361 Explosions 213 | . . . 213 Melee . | . . . . Ramming 94 | . . 94 . Kinetic 3657 | . 371 2005 1281 Thermal 263 | . . . 263 Explosive . | . . . . Electromagnetic 1066 | . . . 1066 Impact . | . . . . Slashing . | . . . . Piercing . | . . . . Highest Corruption 2 | . . 2 . Average Corruption 1 | . . 1 . Corruption Purged . | . . . . Effects 2 | . . 2 . Message Errors 1 | . . 1 . Data Loss (minor) 1 | . . 1 . Overload Shots . | . . . . Overflow Damage 55 | . . 52 3 Projectiles 55 | . . 52 3 Explosions . | . . . . Melee . | . . . . Knockbacks 19 | . . 16 3 Impact . | . . . . Kinetic 17 | . . 15 2 Secondary 2 | . . 1 1 Self-Inflicted Damage 43 | . . 43 . Shots . | . . . . Rammed 21 | . . 20 1 Targets Rammed 21 | . . 20 1 Kicked . | . . . . Crushed . | . . . . Highest Temperature 695 | . 144 440 695 Average Temperature 156 | . 42 130 203 Received Heat Transfer 1158 | . 120 282 756 Effects 43 | . . 10 33 Shutdowns 19 | . . 4 15 Energy Bleed 11 | . . 4 7 Interference 6 | . . . 6 Matter Decay 2 | . . 1 1 Short Circuit 2 | . . 1 1 Damage (minor) 1 | . . . 1 Damage (core) 2 | . . . 2 Siege Activations . | . . . . Robots Corrupted . | . . . . Combat Hostiles . | . . . . Parts Fried 4 | . . . 4 Impact Corruptions . | . . . . Robots Melted . | . . . . Combat Hostiles . | . . . . Parts Melted . | . . . . Heat Transferred 324 | . . . 324 Parts Sabotaged . | . . . . Parts Stolen . | . . . . Parts Stripped . | . . . . Power Chain Reactions 3 | . . . 3 Missiles Intercepted . | . . . . Alert | -11 -10 -9 -8 ------- Run | Scr Mat Mat Mat Peak Influence 398 | . 220 398 294 Average Influence 140 | . 118 192 98 Maximum Alert Level 1 | . 1 1 1 Low Security (%) 66 | . . . . Level 1 33 | . . . . Level 2 . | . . . . Level 3 . | . . . . Level 4 . | . . . . Level 5 . | . . . . High Security . | . . . . Max Security . | . . . . Squads Dispatched 8 | . . 2 6 Investigation . | . . . . Extermination . | . . . . Reinforcement 4 | . . 2 2 Assault . | . . . . Garrison 4 | . . . 4 Intercept . | . . . . Construction Impeded . | . . . . Haulers Reinforced . | . . . . Stealth | -11 -10 -9 -8 --------- Run | Scr Mat Mat Mat Distress Signals 5 | . . 1 4 Communications Jammed . | . . . . Distress Signals . | . . . . Times Spotted 93 | . 12 38 43 Peak Tracking Total 7 | . 4 6 7 Tactical Retreats 3 | . . 2 1 Traps | -11 -10 -9 -8 ------- Run | Scr Mat Mat Mat Traps Triggered 6 | . . 5 1 Indirectly . | . . . . Trap Hack Attempts . | . . . . Triggered . | . . . . Disarmed . | . . . . Reprogrammed . | . . . . Reused . | . . . . Traps Extracted . | . . . . Installed . | . . . . Triggered . | . . . . Machines | -11 -10 -9 -8 ---------- Run | Scr Mat Mat Mat Machines Disabled 7 | . . 4 3 Max in Single Turn 1 | . . 1 1 Machines Sabotaged . | . . . . Garrisons Compromised . | . . . . Overloaded Fab Kills . | . . . . Fab Network Shutdowns . | . . . . Hacking | -11 -10 -9 -8 --------- Run | Scr Mat Mat Mat Machines Accessed . | . . . . Terminals . | . . . . Fabricators . | . . . . Repair Stations . | . . . . Recycling Units . | . . . . Scanalyzers . | . . . . Garrison Access . | . . . . Total Hacks . | . . . . Successful . | . . . . Failed . | . . . . Catastrophic . | . . . . Database Lockouts . | . . . . Manual . | . . . . Terminals . | . . . . Fabricators . | . . . . Repair Stations . | . . . . Recycling Units . | . . . . Scanalyzers . | . . . . Garrison Access . | . . . . Terminal Hacks . | . . . . Fabricator Hacks . | . . . . Repair Station Hacks . | . . . . Recycling Unit Hacks . | . . . . Scanalyzer . | . . . . Garrison Access Hacks . | . . . . Unauthorized Hacks . | . . . . Terminals . | . . . . Fabricators . | . . . . Repair Stations . | . . . . Recycling Units . | . . . . Scanalyzers . | . . . . Garrison Access . | . . . . Data Cores Recovered . | . . . . Used . | . . . . Hacking Detections . | . . . . Full Trace Events . | . . . . Feedback Events . | . . . . Feedback Blocked . | . . . . Robot Schematics Acquired . | . . . . Robots Built . | . . . . Matter . | . . . . Time . | . . . . Total Robot Build Rating . | . . . . Part Schematics Acquired . | . . . . Parts Built . | . . . . Matter . | . . . . Time . | . . . . Total Part Build Rating . | . . . . Parts Repaired . | . . . . Time . | . . . . Parts Recycled . | . . . . Recycled Matter . | . . . . Retrieved Matter . | . . . . Retrieved Components . | . . . . Parts Scanalyzed . | . . . . Part Schematics Acquired . | . . . . Parts Damaged . | . . . . Bothacking | -11 -10 -9 -8 ------------ Run | Scr Mat Mat Mat Used RIF Installer . | . . . . Robots Hacked . | . . . . Non-combat . | . . . . Combat . | . . . . Robot Hacks Applied . | . . . . Relay Couplers Released . | . . . . Robots Rewired . | . . . . Allies Hacked . | . . . . Hacks Repelled . | . . . . Allies | -11 -10 -9 -8 -------- Run | Scr Mat Mat Mat Total Allies . | . . . . Largest Group . | . . . . Highest-Rated Group . | . . . . Highest-Rated Ally . | . . . . Total Orders . | . . . . Ally Attacks . | . . . . Total Damage . | . . . . Kills . | . . . . Allies Corrupted . | . . . . Allies Melted . | . . . . Intel | -11 -10 -9 -8 ------- Run | Scr Mat Mat Mat Robot Analysis Total . | . . . . Derelict Logs Recovered . | . . . . Drone Launches . | . . . . Drone Recoveries . | . . . . Exploration | -11 -10 -9 -8 ------------- Run | Scr Mat Mat Mat Turns Passed 2833 | 48 464 1228 1093 Spaces Moved 1878 | 39 313 819 707 Core 19 | 17 . . 2 Treads . | . . . . Legs 193 | 22 171 . . Wheels 1666 | . 142 819 705 Hover . | . . . . Flight . | . . . . Fastest Speed 50 | 50 100 100 96 Average Speed 109 | 89 110 112 106 Slowest Speed 900 | 120 120 130 900 Overloaded Moves . | . . . . Propulsion Burnouts . | . . . . Robots Hopped . | . . . . Cave-ins Triggered . | . . . . Exploration Rate (%) 43 | 3 48 76 48 Regions Visited 3 Branch Regions . Pre-discovered Areas . | . . . . Known Exits Taken 3 | 1 1 1 . Unknown Exits Taken . | . . . . Scrap Searched . | . . . . Spaces Dug . | . . . . Terrain Destroyed 49 | . . 33 16 Melee . | . . . . Projectile 40 | . . 33 7 AOE 9 | . . . 9 Actions | -11 -10 -9 -8 --------- Run | Scr Mat Mat Mat Total 2332 | 51 380 1003 898 Wait 149 | . 16 71 62 Move 1875 | 38 312 818 707 Hop . | . . . . Pick Up 40 | 6 12 12 10 Fast Attach 5 | 2 . 3 . Attach 24 | 5 1 5 13 Detach 1 | . . . 1 Swap 17 | . 4 10 3 Drop 16 | . 4 9 3 Fire 184 | . 31 55 98 Melee . | . . . . Ram 21 | . . 20 1 Kick . | . . . . Crush . | . . . . Escape Stasis . | . . . . Rewire . | . . . . Trap . | . . . . Miscellaneous . | . . . . Route ------- -11/Scrapyard -10/Materials (discovered 3 exits: *Mat / *Min x2) -9/Materials (discovered 2 exits: *Mat / *Min) -8/Materials History --------- Turn | Location | Event 9 | -11/Scrapyard | Identified exit to Materials 9 | -11/Scrapyard | Discovered exit to Materials (range 13) 49 | -11/Scrapyard | Entered Materials 49 | -10/Materials | Evolved 1 slot: Power x1 317 | -10/Materials | Build established: Mutant 407 | -10/Materials | Identified exit to Mines 407 | -10/Materials | Discovered exit to Mines (range 8) 418 | -10/Materials | Discovered exit to Mines (range 12) 453 | -10/Materials | Identified exit to Materials 453 | -10/Materials | Discovered exit to Materials (range 16) 513 | -10/Materials | Entered another Materials area 513 | -9/Materials | Evolved 2 slots: Utility x1, Weapon x1 829 | -9/Materials | Build established: Gunner 1194 | -9/Materials | Identified exit to Mines 1194 | -9/Materials | Discovered exit to Mines (range 14) 1725 | -9/Materials | Identified exit to Materials 1725 | -9/Materials | Discovered exit to Materials (range 5) 1741 | -9/Materials | Entered another Materials area 1741 | -8/Materials | Evolved 2 slots: Power x1, Propulsion x1 1833 | -8/Materials | Build established: Skirmisher 2268 | -8/Materials | Lost 3 parts (1n2w) 2331 | -8/Materials | Garrison activated, responded to threat 2774 | -8/Materials | Garrison activated, responded to threat 2812 | -8/Materials | Core integrity fell below 50% 2818 | -8/Materials | Core integrity fell below 20% 2834 | -8/Materials | Destroyed by Y-45 Defender with Heavy Assault Rifle Last Messages --------------- 02814_ Overheating: Core damaged (-104). 02814_ K-01 Serf collects debris. 02814_ Electrolysis Chamber disabled. 02815_ Power failure, Imp. Ion Engine shutdown. 02815_ Lightning Gun destroyed. 02816_ K-01 Serf cleans the Garrison Access. 02817_ Hvy. Particle Cannon destroyed. 02818_ Overheating: Energy bleed (-36). 02818_ K-01 Serf collects debris. 02819_ Overheating: Energy bleed (-26). 02821_ K-01 Serf cleans the Garrison Access. 02823_ K-01 Serf collects debris. 02826_ Adv. Sensor Array destroyed. 02827_ Imp. Ion Engine destroyed. 02827_ K-01 Serf collects debris. 02830_ Y-45 Defender destroyed. 02830_ K-01 Serf collects debris. 02833_ Lightning Gun destroyed. 02834_ Slammed into G-47 Trooper. 02834_ Destabilizing: System corrupted (+2). Map ----- +----------------------------------------------------+ | ???????????????????####### #! ## #???? | | ??????????????"??????????## ######### #???? | | ?????????????????????????## #????#??# #?#?? | | ??????????????????????????# #?#?????# #???? | | ??????????????????????????# #???????# #???? | | ??????????????????######### ##??????# #???? | | ??????????????????# # #???#??# #???? | | ??????????????????# # #??????# ] #???? | | ??????????????????# + T #??????########???? | | ??????????????? ??# # #??#????#?????????? | | ??????????????????# !! # #?????????????????? | | ???????????????#?## !! ### ###?????????????????? | | ??????????????????###### #?# ##?#????????????????? | | ???????????????????????##### #????#??????????????? | | ?????????????#????#??????### ##???#???????#??????? | | ????????????????#??????????# #??##?#?????????????? | | ????????????????#?#????#??## ########????????????? | | ????????????????#""???##??## # #?##?#????#### | | ????????????????#"G"?????### # #????#???## | | ?????????########" "######## # """#?#??????## | | ???????? k w % + Y"#?????#???# "" | | ???????? % # """##???????## "" | | ???????? Y # ###?#?#???# "" | | ???????? *[ #####+##?#??#???## "" | | ?????????" """ """ " "gY= ##??# ##?????#???# "" | | ????????????""" """ """@! %###?# #?????#????# | | ????????????""" """ """%% %*##?# #???##?######## | | ?????????? u %%##??# ###????# | | ?????????? % %%##### ######## | | ?????????????"" """ """ u = % % | | ??????????????" """ "" % ###############+##### | | ??????????????" """ """ k% #?????# # | | ????????????? s [[#?##?## """ """ # | | ????????????? %! #?????# """ """ # | | ????????????? ###"T"###=%[[[##????# """ """ # | | ????????????? ? #?####?##%* ==#??#?## """ """ # | | ?????????????????? ????#??## ==#???#?# """ """ # | | ??????????????????????#??#?#u#####?????# # | | ????????????????? ????????# ##??#?????# !# | | ???????????????????????????# ##????????########### | | ???????????????????? ??"???# #?#???#?#?#???#????#? | | ???????????????????????????# #???#?#?#????#??????# | | ???????????????????????????# #?????#?????##??????? | | ???????????????????????????# #?????????????????#?? | | ?????????????????????????#?# ????????????????????? | | ???????????????????????????? ????????????????????? | | ?????????????????????????? ? ????????????????????? | | ???????????????????????????? ????????????????????? | | ?????????????????????????"?? ????????????????????? | | ???????????????????????????? ????????????????????? | +----------------------------------------------------+ Best States ------------- Heat Dissipation 31 Energy Generation 26 Energy Capacity 595 Matter Stores 300 Matter Capacity 300 Sight Range 16 Robot Scan Range 16 Terrain Scan Range 14 Terrain Scan Density 10 Resistance: KI 35 Resistance: TH 35 Resistance: EX 35 Resistance: EM 35 Resistance: I 35 Resistance: S 35 Resistance: P 35 Evasion (%) 50 Targeting Accuracy 5 Item Schematics ----------------- None Robot Schematics ------------------ None Fabricated ------------ Nothing Alien Tech Used ----------------- None Achievements -------------- Fist Fight Challenges ------------ None Game ------ Seed GuidedHackingPit Manual? 0 Play Time 00:34:17 Cumulative 24.8 hours Start 2019.11.10 @ 15:57:40 End 2019.11.10 @ 18:13:20 Sessions 3 Manual Loads 0 Difficulty Explorer Special Mode None Game No. 78 Rogue 46 Adventurer 16 Explorer 8 Win Type - Total 0 Types 0/0/0/0/0/0/0 Lore% 4 Gallery% 21 Achievement% 10 Wizard Run 0 Options --------- ASCII 0 Keyboard 0 Movement Mouse Keybinds 0 Fullscreen 2 Font 18/X11 Map View 76x50 Tactical HUD 1 Map Filters NONE Filters NONE Steam 1 RUN: 845140ee-2992-447b-97b7-bda4768b71bd